Cogmind - Beta 13 @@@ ROGUE MODE // 2024.06.12 @ 17:09:48 Player: CanadianCogs Result: Core destroyed Performance ------------- Evolutions (2) 1000 Regions Visited (6) 1200 Robots Destroyed (38) 190 Value Destroyed (1154) 1154 Prototype IDs (5) 100 Alien Tech Used (0) 0 Bonus (152) 152 TOTAL SCORE: 3796 Bonus ------- Follower Combat Kills 54 Aligned with FarCom 300 Friendly Fire -202 Cogmind --------- Core Integrity 0/550 Matter 248/300 Energy 89/100 System Corruption 7% Temperature Critical (589) Movement Rolling (130) Ox2 Location -8/Storage Parts ------- > --- POWER (1) -------- (None) > --- PROPULSION (4) --- Compact Wheel > --- UTILITY (4) ------ High-capacity Storage Unit > --- WEAPON (2) ------- (None) > --- INVENTORY (20) --- Aerolev Unit Aerolev Unit Aerolev Unit Aerolev Unit Improved Heat Sink Actuator Array Actuator Array Actuator Array Drone Bay (2/2) Drone Bay (2/2) Drone Bay (2/2) Advanced Beam Cannon Advanced Beam Cannon Firepult Flak Cannon Peak State ------------ > --- POWER ------------ Light Nuclear Core > --- PROPULSION ------- Carbon-fiber Leg Carbon-fiber Leg Carbon-fiber Leg Carbon-fiber Leg > --- UTILITY ---------- High-capacity Storage Unit Recoil Stabilizer Recoil Stabilizer Reaction Control System > --- WEAPON ----------- Flak Cannon Flak Cannon > --- INVENTORY -------- Light Nuclear Core Aerolev Unit Aerolev Unit Recoil Stabilizer Actuator Array Actuator Array Actuator Array Drone Bay Drone Bay Drone Bay Firepult Flak Cannon [Rating: 37] Favorites ----------- Power Ion Engine Engine Ion Engine Power Core Light Nuclear Core Propulsion Light Treads Treads Light Treads Leg Carbon-fiber Leg Wheel Compact Wheel Hover Unit Aerolev Unit Utility Targeting Computer Device Recoil Stabilizer Storage High-capacity Storage Unit Processor Targeting Computer Weapon Flak Cannon Energy Gun Medium Laser Energy Cannon Advanced Beam Cannon Ballistic Cannon Flak Cannon Launcher Rocket Launcher Build | -11 -10 -10 -10 -9 -8 -8 ------- Run | Yrd Mat Min Exi Min Mat Sto Slots Evolved 4 | . . . . . 4 . Power . | . . . . . . . Propulsion 2 | . . . . . 2 . Utility 2 | . . . . . 2 . Weapon . | . . . . . . . Parts Attached 58 | 7 . 1 7 2 9 32 Power 5 | 1 . . . . . 4 Engine 2 | 1 . . . . . 1 Core 3 | . . . . . . 3 Reactor . | . . . . . . . Propulsion 15 | 2 . . . . 2 11 Treads 4 | 2 . . . . 2 . Leg 6 | . . . . . . 6 Wheel 4 | . . . . . . 4 Hover 1 | . . . . . . 1 Flight . | . . . . . . . Utility 19 | 2 . 1 4 . 6 6 Device 11 | 1 . . 2 . 2 6 Storage 4 | 1 . 1 . . 2 . Processor 4 | . . . 2 . 2 . Hackware . | . . . . . . . Protection . | . . . . . . . Artifact . | . . . . . . . Weapon 19 | 2 . . 3 2 1 11 Energy Gun 9 | 2 . . 2 . . 5 Energy Cannon 5 | . . . 1 . . 4 Ballistic Gun . | . . . . . . . Ballistic Cannon 2 | . . . . . . 2 Launcher 3 | . . . . 2 1 . Special Weapon . | . . . . . . . Impact Weapon . | . . . . . . . Slashing Weapon . | . . . . . . . Piercing Weapon . | . . . . . . . Special Melee Weapon . | . . . . . . . Unidentified Prototypes 5 | . . . 2 . . 3 Parts Lost 28 | . . . . . 4 24 Power 3 | . . . . . . 3 Propulsion 10 | . . . . . . 10 Utility 8 | . . . . . 3 5 Weapon 7 | . . . . . 1 6 Highest Loss Streak 10 | . . . . . 2 10 To Critical Strikes . | . . . . . . . Average Slot Usage (%) 88 | . 100 100 99 97 86 80 Engine 7 | . 14 14 14 14 9 . Core 2 | . . . . . . 6 Treads 15 | . 28 28 28 28 23 2 Leg 9 | . . . . . . 22 Wheel 1 | . . . . . . 2 Device 12 | . 14 14 6 . 9 18 Storage 8 | . 14 14 6 . 9 9 Processor 9 | . . . 14 28 17 1 Energy Gun 8 | . 28 28 27 13 . . Ballistic Cannon 5 | . . . . . . 12 Launcher 5 | . . . . 12 17 . Naked Turns . | . . . . . . . Heaviest Build 60 | 15 15 20 20 13 55 60 Greatest Support 60 | 40 40 40 40 40 60 60 Greatest Overweight (x) 19 | 1 . . . . 1 19 Average Overweight (x) . | . . . . . . . Largest Inventory Capacity 20 | 8 8 10 10 5 20 20 Average Capacity 15 | 7 8 9 7 5 19 20 Most Carried 20 | 5 3 4 9 5 13 20 Average Carried 10 | 1 1 3 4 5 10 15 Final Capacity 20 | 8 8 10 5 5 20 20 Final Carried 16 | . 3 4 5 5 12 16 Class Distribution -------------------- 100% | Mutant Dominant Class ---------------- Mutant | -10/Materials Mutant | -10/Mines Mutant | -10/Exiles Mutant | -9/Mines Mutant | -8/Materials Mutant | -8/Storage Resources | -11 -10 -10 -10 -9 -8 -8 ----------- Run | Yrd Mat Min Exi Min Mat Sto Matter Collected 1281 | 270 . 10 . 74 72 855 Remotely . | . . . . . . . Salvage Created 1287 | 138 . . . . 121 1028 Parts 49 | 9 . . . . 4 36 Haulers Intercepted 1 | . . . . . . 1 Recyclers Shooed 4 | 1 . . . . . 3 Parts Field Recycled . | . . . . . . . Retrieved Matter . | . . . . . . . Parts Self-Destructed . | . . . . . . . Prevented . | . . . . . . . Kills | -11 -10 -10 -10 -9 -8 -8 ------- Run | Yrd Mat Min Exi Min Mat Sto Combat Hostiles Destroyed 27 | . . . . . 5 22 Melee 1 | . . . . . . 1 Guns 3 | . . . . . . 3 Cannons 11 | . . . . . . 11 AOE 9 | . . . . . 5 4 Classes Destroyed 10 | 2 . . . . 3 5 Worker 3 | . . . . . . 3 Tunneler 2 | 2 . . . . . . Hauler 1 | . . . . . . 1 Recycler 4 | 1 . . . . . 3 Swarmer 3 | . . . . . . 3 Grunt 15 | . . . . . 2 13 Brawler 3 | . . . . . 1 2 Duelist 1 | . . . . . . 1 Protector 2 | . . . . . . 2 Sentry 3 | . . . . . 2 1 Thug 1 | . . . . . . 1 Best Kill Streak 9 | 3 . . . . 3 9 Combat Bots Only 9 | . . . . . 3 9 Max Kills in Single Turn 4 | 1 . . . . 1 4 Gunslinging . | . . . . . . . Exploded 3 | . . . . . 1 3 Melee 1 | . . . . . . 1 Uniques/NPCs Destroyed . | . . . . . . . Combat | -11 -10 -10 -10 -9 -8 -8 -------- Run | Yrd Mat Min Exi Min Mat Sto Hostile Shots Fired 250 | . 1 . . 1 32 216 Missed 71 | . . . . . 9 62 Damage Taken 3062 | . 12 . . 9 411 2630 Core 615 | . . . . . 55 560 Absorbed by Shields . | . . . . . . . Regen/Repaired (Parts) 40 | . . . . . 40 . Core Remaining (%) 100 | 100 . . . 100 . . Volleys Fired 88 | 7 . . . . 9 72 Largest 2 | 2 . . . . 2 2 Hottest 250 | 100 . . . . 66 250 Shots Fired 156 | 14 . . . . 18 124 Gun 38 | 14 . . . . . 24 Cannon 97 | . . . . . . 97 Launcher 21 | . . . . . 18 3 Special . | . . . . . . . Kinetic 63 | . . . . . . 63 Thermal 48 | 14 . . . . . 34 Explosive 21 | . . . . . 18 3 Electromagnetic 24 | . . . . . . 24 Robot Hit Streak 11 | 3 . . . . 11 9 Robot Miss Streak 12 | 1 . . . . 2 12 Penetration Max . | . . . . . . . Secondary Targets 1 | . . . . . . 1 Max Gunslinging Chain 1 | . . . . . . 1 Shots Hit Robots 115 | 7 . . . . 11 97 Core Hits 110 | 4 . . . . 12 94 Critical Kills . | . . . . . . . Critical Parts Destroyed . | . . . . . . . Critical Strikes 2 | 1 . . . . . 1 Burn 1 | 1 . . . . . . Corrupt 1 | . . . . . . 1 Melee Attacks . | . . . . . . . Impact . | . . . . . . . Slashing . | . . . . . . . Piercing . | . . . . . . . Sneak Attacks . | . . . . . . . Combat Hostiles . | . . . . . . . Follow-up Attacks . | . . . . . . . Damage Inflicted 3628 | 86 . . . . 453 3089 Guns 433 | 86 . . . . . 347 Cannons 1530 | . . . . . . 1530 Explosions 1599 | . . . . . 453 1146 Melee . | . . . . . . . Ramming 66 | . . . . . . 66 Kinetic 1001 | . . . . . . 1001 Thermal 1108 | 86 . . . . . 1022 Explosive 1106 | . . . . . 453 653 Electromagnetic 347 | . . . . . . 347 Impact . | . . . . . . . Slashing . | . . . . . . . Piercing . | . . . . . . . Highest Corruption 7 | . . . . . 3 7 Average Corruption 5 | . . . . . 3 6 Corruption Purged . | . . . . . . . Corruption Blocked . | . . . . . . . Effects 49 | . . . . . 8 41 Message Errors 11 | . . . . . 2 9 Matter Fused 19 | . . . . . 4 15 Heat Flow Errors 4 | . . . . . . 4 Energy Discharges 1 | . . . . . . 1 Parts Rejected 2 | . . . . . . 2 Parts Fused 1 | . . . . . . 1 Data Loss (minor) 5 | . . . . . . 5 Data Loss (major) 2 | . . . . . 2 . Misfires 1 | . . . . . . 1 Alerts 1 | . . . . . . 1 Weapon Failures 2 | . . . . . . 2 Overload Shots . | . . . . . . . Overflow Damage 1 | . . . . . . 1 Projectiles 1 | . . . . . . 1 Explosions . | . . . . . . . Melee . | . . . . . . . Knockbacks 28 | . . . . . . 28 Impact . | . . . . . . . Kinetic 27 | . . . . . . 27 Secondary 1 | . . . . . . 1 Self-Inflicted Damage 175 | . . . . . 47 128 Shots 9 | . . . . . 1 8 Rammed . | . . . . . . . Targets Rammed 24 | . . . . . . 24 Kicked 24 | . . . . . . 24 Crushed . | . . . . . . . Highest Temperature 589 | 176 . . . . 6 589 Average Temperature 108 | 72 . . . . 3 114 Received Heat Transfer 1455 | . 6 . . . 189 1260 Effects 4 | . . . . . . 4 Energy Bleed 1 | . . . . . . 1 Matter Decay 1 | . . . . . . 1 Damage (major) 1 | . . . . . . 1 Damage (core) 1 | . . . . . . 1 Siege Activations . | . . . . . . . Robots Corrupted . | . . . . . . . Combat Hostiles . | . . . . . . . Parts Fried 1 | . . . . . . 1 Impact Corruptions . | . . . . . . . Robots Melted 3 | . . . . . . 3 Combat Hostiles 3 | . . . . . . 3 Parts Melted 11 | 1 . . . . . 10 Heat Transferred 3592 | 333 . . . . . 3259 Parts Sabotaged . | . . . . . . . Parts Stolen . | . . . . . . . Parts Stripped . | . . . . . . . Power Chain Reactions . | . . . . . . . Alert | -11 -10 -10 -10 -9 -8 -8 ------- Run | Yrd Mat Min Exi Min Mat Sto Peak Influence 271 | 15 9 3 . 59 271 243 Initial 59 | . 9 3 . . . 59 Average 76 | 6 9 3 . 34 113 92 Maximum Alert Level 1 | . . . . . 1 1 Low Security (%) 89 | 100 100 100 . 100 78 88 Level 1 10 | . . . . . 21 11 Level 2 . | . . . . . . . Level 3 . | . . . . . . . Level 4 . | . . . . . . . Level 5 . | . . . . . . . High Security . | . . . . . . . Max Security . | . . . . . . . Squads Dispatched 7 | . . . . . 1 6 Investigation 1 | . . . . . . 1 Extermination . | . . . . . . . Reinforcement 4 | . . . . . 1 3 Assault 2 | . . . . . . 2 Garrison . | . . . . . . . Intercept . | . . . . . . . Searches Triggered . | . . . . . . . Construction Impeded 2 | . . . . . . 2 Haulers Reinforced . | . . . . . . . Active Scanning Responses . | . . . . . . . Cargo Convoy Interrupts . | . . . . . . . Stealth | -11 -10 -10 -10 -9 -8 -8 --------- Run | Yrd Mat Min Exi Min Mat Sto Distress Signals 5 | . . . . . 2 3 Communications Jammed . | . . . . . . . Distress Signals . | . . . . . . . Times Spotted 52 | . 1 . . 2 14 35 Peak Tracking Total 10 | . 1 . . 3 7 10 Tactical Retreats 4 | . . . . . 1 3 Traps | -11 -10 -10 -10 -9 -8 -8 ------- Run | Yrd Mat Min Exi Min Mat Sto Traps Triggered 1 | . . . . . . 1 Indirectly . | . . . . . . . Trap Hack Attempts . | . . . . . . . Triggered . | . . . . . . . Disarmed . | . . . . . . . Reprogrammed . | . . . . . . . Reused . | . . . . . . . Traps Extracted . | . . . . . . . Installed . | . . . . . . . Triggered 1 | . . . . . . 1 Machines | -11 -10 -10 -10 -9 -8 -8 ---------- Run | Yrd Mat Min Exi Min Mat Sto Machines Disabled 3 | . . . . . 1 2 Max in Single Turn 1 | . . . . . 1 1 Machines Repaired . | . . . . . . . Machines Dismantled . | . . . . . . . Machines Sabotaged . | . . . . . . . Overloaded Fab Kills . | . . . . . . . Hacking | -11 -10 -10 -10 -9 -8 -8 --------- Run | Yrd Mat Min Exi Min Mat Sto Machines Accessed 8 | . . . . . 3 5 Terminals 6 | . . . . . 2 4 Fabricators . | . . . . . . . Repair Stations 1 | . . . . . 1 . Recycling Units 1 | . . . . . . 1 Scanalyzers . | . . . . . . . Garrison Access . | . . . . . . . Total Hacks 20 | . . . . . 6 14 Successful 9 | . . . . . 6 3 Failed 11 | . . . . . . 11 Catastrophic 1 | . . . . . . 1 Database Lockouts . | . . . . . . . Manual 6 | . . . 1 . 2 3 Terminals 11 | . . . . . 2 9 Fabricators . | . . . . . . . Repair Stations 4 | . . . . . 4 . Recycling Units 5 | . . . . . . 5 Scanalyzers . | . . . . . . . Garrison Access . | . . . . . . . Terminal Hacks 2 | . . . . . . 2 Open Door 2 | . . . . . . 2 Fabricator Hacks . | . . . . . . . Repair Station Hacks 4 | . . . . . 4 . Scan Component 2 | . . . . . 2 . Repair 2 | . . . . . 2 . Recycling Unit Hacks 1 | . . . . . . 1 Retrieve Components 1 | . . . . . . 1 Scanalyzer . | . . . . . . . Garrison Access Hacks . | . . . . . . . Unauthorized Hacks 2 | . . . . . 2 . Terminals 2 | . . . . . 2 . Botnet 2 | . . . . . 2 . Fabricators . | . . . . . . . Repair Stations . | . . . . . . . Recycling Units . | . . . . . . . Scanalyzers . | . . . . . . . Garrison Access . | . . . . . . . Data Cores Recovered . | . . . . . . . Used . | . . . . . . . Hacking Detections 5 | . . . . . 1 4 Full Trace Events 2 | . . . . . . 2 Feedback Events . | . . . . . . . Feedback Blocked . | . . . . . . . Robot Schematics Acquired . | . . . . . . . Robots Built . | . . . . . . . Authchips . | . . . . . . . Time . | . . . . . . . Total Robot Build Rating . | . . . . . . . Part Schematics Acquired . | . . . . . . . Parts Built . | . . . . . . . Authchips . | . . . . . . . Time . | . . . . . . . Total Part Build Rating . | . . . . . . . Parts Repaired 2 | . . . . . 2 . Time 58 | . . . . . 58 . Parts Recycled . | . . . . . . . Recycled Matter . | . . . . . . . Retrieved Matter . | . . . . . . . Retrieved Components 9 | . . . . . . 9 Parts Scanalyzed . | . . . . . . . Part Schematics Acquired . | . . . . . . . Parts Damaged . | . . . . . . . Bothacking | -11 -10 -10 -10 -9 -8 -8 ------------ Run | Yrd Mat Min Exi Min Mat Sto Used RIF Installer . | . . . . . . . Robots Hacked . | . . . . . . . Non-combat . | . . . . . . . Combat . | . . . . . . . Robot Hacks Applied . | . . . . . . . Relay Couplers Released . | . . . . . . . Fabnet Peak Effective % . | . . . . . . . Robots Rewired . | . . . . . . . Allies Hacked . | . . . . . . . Hacks Repelled . | . . . . . . . Allies | -11 -10 -10 -10 -9 -8 -8 -------- Run | Yrd Mat Min Exi Min Mat Sto Total Allies 7 | . . 5 . . . 2 Largest Group 5 | . . 5 5 3 2 2 Highest-Rated Group 82 | . . 82 82 40 32 62 Highest-Rated Ally 31 | . . 31 31 16 16 31 Total Orders . | . . . . . . . Ally Attacks 19 | . . . . 5 12 2 Total Damage 265 | . . . . 58 167 40 Kills 4 | . . . . 3 1 . Allies Corrupted . | . . . . . . . Allies Melted . | . . . . . . . Intel | -11 -10 -10 -10 -9 -8 -8 ------- Run | Yrd Mat Min Exi Min Mat Sto Robot Analysis Total . | . . . . . . . Derelict Logs Recovered 2 | . . 1 . 1 . . Drone Launches . | . . . . . . . Drone Recoveries . | . . . . . . . Exploration | -11 -10 -10 -10 -9 -8 -8 ------------- Run | Yrd Mat Min Exi Min Mat Sto Turns Passed 3622 | 82 131 218 410 486 779 1516 Spaces Moved 1441 | 44 81 131 242 277 261 405 Core 32 | 23 . . . . . 9 Treads 1074 | 21 81 131 242 277 261 61 Legs 255 | . . . . . . 255 Wheels 80 | . . . . . . 80 Hover . | . . . . . . . Flight . | . . . . . . . Fastest Speed 50 | 50 160 160 160 160 160 108 Average Speed 161 | 107 160 160 160 160 173 163 Slowest Speed 1000 | 160 160 160 160 160 240 1000 Overloaded Moves . | . . . . . . . Propulsion Burnouts . | . . . . . . . Robots Hopped . | . . . . . . . Cave-ins Triggered . | . . . . . . . Exploration Rate (%) 30 | 4 16 38 60 41 18 33 Regions Visited 6 Branch Regions 4 Pre-discovered Areas 1 | . . 1 . . . . Known Exits Taken . | . . . . . . . Unknown Exits Taken 6 | 1 1 1 1 1 1 . Scrap Searched 3 | . . 1 . 2 . . Spaces Dug 15 | . . . . . 15 . Terrain Destroyed 149 | . . . . . 112 37 Melee . | . . . . . . . Projectile . | . . . . . . . AOE 149 | . . . . . 112 37 Terrain Rammed . | . . . . . . . Walls Destroyed . | . . . . . . . Machines Disabled . | . . . . . . . Actions | -11 -10 -10 -10 -9 -8 -8 --------- Run | Yrd Mat Min Exi Min Mat Sto Total 2566 | 65 83 140 269 320 570 1119 Wait 868 | . . 6 9 40 276 537 Move 1435 | 43 80 130 241 276 260 405 Hop . | . . . . . . . Pick Up 65 | 7 3 2 4 . 15 34 Fast Attach 3 | 1 . . . 2 . . Attach 49 | 6 . . 7 . 7 29 Detach 9 | . . . 4 . . 5 Swap 6 | . . 1 . . 2 3 Drop 19 | 1 . 1 4 2 1 10 Fire 88 | 7 . . . . 9 72 Melee . | . . . . . . . Ram . | . . . . . . . Kick 24 | . . . . . . 24 Crush . | . . . . . . . Escape Stasis . | . . . . . . . Rewire . | . . . . . . . Trap . | . . . . . . . Miscellaneous . | . . . . . . . Route ------- -11/Scrapyard -10/Materials -10/Mines -10/Exiles -9/Mines -8/Materials -8/Storage History --------- Turn | Location | Event 6 | -11/Scrapyard | Discovered new exit (range 15) 83 | -11/Scrapyard | Entered Materials 128 | -10/Materials | Discovered new exit (range 12) 214 | -10/Materials | Entered Mines 305 | -10/Mines | Build established: Mutant 356 | -10/Mines | Assisted by bots powering up and referring to "LRC-V3" 418 | -10/Mines | Deemed a non-threat by the Exiles lab entrance 418 | -10/Mines | Discovered new exit (range 5) 432 | -10/Mines | Entered Exiles 432 | -10/Exiles | Accompanied by 5 allies 462 | -10/Exiles | Led the pair of lost Derelicts to a safe place 472 | -10/Exiles | Met 8R-AWN 498 | -10/Exiles | Met EX-HEX 543 | -10/Exiles | Met EX-BIN 562 | -10/Exiles | Aligned with FarCom system 564 | -10/Exiles | Given EX-Vault access code 600 | -10/Exiles | Opened EX-Vault 621 | -10/Exiles | Found Prototype Device 622 | -10/Exiles | Identified Skeleton Box 628 | -10/Exiles | Found Prototype Energy Cannon 631 | -10/Exiles | Identified Firepult 676 | -10/Exiles | Warned to stay clear of 0b10 Research branches 730 | -10/Exiles | Met EX-DEC 821 | -10/Exiles | Discovered new exit (range 14) 842 | -10/Exiles | Left Exiles lab with Firepult 842 | -10/Exiles | Entered Mines 842 | -9/Mines | Accompanied by 3 allies 862 | -9/Mines | Learned Materials terminal intel 1072 | -9/Mines | Received a Rocket Launcher from a helpful Derelict 1240 | -9/Mines | Discovered new exit (range 7) 1328 | -9/Mines | Entered Materials 1328 | -8/Materials | Accompanied by 2 allies 1328 | -8/Materials | Evolved 4 slots: Propulsion x2, Utility x2 1329 | -8/Materials | Loaded intel: 12 terminal locations 1447 | -8/Materials | Repaired Rocket Launcher 1475 | -8/Materials | Repaired Lgt. Treads 1598 | -8/Materials | Discovered new exit (range 9) 2107 | -8/Materials | Entered Storage 2120 | -8/Storage | Met a pair of Derelict thieves 2259 | -8/Storage | Lost 6 parts (3n2u1w) 2262 | -8/Storage | Destroyed 9 combat bots 3277 | -8/Storage | Core integrity fell below 50% 3384 | -8/Storage | Lost 10 parts (1p3n3u3w) 3585 | -8/Storage | Core integrity fell below 20% 3624 | -8/Storage | Core destroyed Last Messages --------------- 03602_ System corrupted: Matter fused (-5). 03606_ G-47 Trooper heat damages Aluminum Leg. 03608_ Slug penetrates Wall. 03612_ System corrupted: Adv. Beam Cannon failed to cycle. 03614_ Overheating: Energy bleed (-45). 03615_ Slug penetrates Storage Shell. 03615_ Critical hit (Burn: +37). 03617_ Com. Wheel destroyed. 03618_ Slug penetrates Storage Shell. 03618_ G-47 Trooper destroyed. 03619_ Nuclear Core destroyed. 03620_ System corrupted: Component data lost. 03621_ Critical hit (Burn: +37). 03622_ Penetrated by Slug. 03622_ Wheel destroyed. 03622_ Adv. Beam Cannon destroyed. 03622_ M-13 Machinist repairs Broken Carbon-fiber Leg. 03623_ Overheating: Adv. Beam Cannon damaged (-62). 03623_ Adv. Beam Cannon destroyed. 03624_ Overheating: Core damaged (-110). Map ----- +----------------------------------------------------+ | ??????????????????????????????????????? | | ??????????????????????????????????????? | | ??????????????????????????????????????? | | ??????????????????????????????????????? | | ?????????????????????+????????????????? | | ????????????????????? ????????????????? | | ?????????##"#???????? ????????????????? | | ?????????#T #???????? ""??????????????? | | ??????????#+#???????? ""??????????????? | | ??????????# #???????? ""??????????????? | | ??????????# #???????? ??????????????? | | ??????????# #???????? ??????????????? | | ??????????# #???????? ???????#####??? | | ??????????# #????????#/#??????? #??? | | ??????????# #????????# #??????? #??? | | ??????????# #????????# #??????? #?? | | ??######### #????????# #??##??? #?? | | ??# [ =# ########## #########/#### | | ??# [[ %# | | ??# [[ + % %* | | ??######T## % = % | | ???????######/#+#########+##### ### | | ???????????# hm # # %#??? | | ???????????# gg"g # # #??? | | ??????????## %! %g # """ """ # #??# | | ??????????## @ # """ """ # #??# | | ??????????## # """ """ # #??# | | ??????????## [* # """ # #??# | | ??????????## """ # ?"" # #??# | | ???????????# # ?? ?# #??# | | ???????????# ##??####??# #??# | | ???????????##########?????????# #??# | | ??????????????????????????????# #??# | | ?????????????????????????Y????# #??# | | ??????????????????????????????# #??# | | ??????????????????????????????# #??# | | ??????????????????????????????# #??# | | ??????????????????????????????# #??# | | ??????????????????????????????# ####+ | | ??????????????????????????????# # | | ??????????????????????????????# # | | ??????????????????????????????# # """ | | ??????????????????????????????# + """ | | ??????????????????????????????# # """ | | ??????????????????????????????# # | | ??????????????????????????????# # | | ??????????????????????????????# # | | ??????????????????????????????# ##### | | ??????????????????????????????# | | ??????????????????????????????# | +----------------------------------------------------+ Best States ------------- Heat Dissipation 55 Energy Generation 14 Energy Capacity 250 Matter Stores 300 Matter Capacity 300 Sight Range 16 Terrain Scan Density 10 Evasion (%) 59 Targeting Accuracy 15 Recoil Reduction 8 Item Schematics ----------------- None Robot Schematics ------------------ None Fabricated ------------ Nothing Alien Tech Used ----------------- None Achievements -------------- None Challenges ------------ None Game ------ Seed CompositeBlastShearcannon Manual? 0 Play Time 00:39:47 Cumulative 40.0 hours Start 2024.06.12 @ 16:41:20 End 2024.06.12 @ 17:09:48 Sessions 1 Manual Loads 0 Difficulty Rogue Special Mode None Game No. 70 Rogue 70 Adventurer 0 Explorer 0 Win Type - Total 0 Types 0/0/0/0/0/0/0/0/0 Lore% 22 Gallery% 30 Achievement% 27 Wizard Run 0 Options --------- Layout 0 ASCII 0 Keyboard 0 Movement Mouse Keybinds 0 Fullscreen 2 Font 18/SmallcapsGlow Map View 38x25 Zoom Use 96% Tactical HUD 1 Map Filters NONE Filters NONE Steam 1 RUN: ab806163-b73d-47e0-a6e3-50becf618a67